bitfinex/quotes_SOLUSD_20241127
["timestamp","ask_amount","ask_price","bid_price","bid_amount"]
[1732707727299,12.97600874,235.57,235.49,12.97600874]
[1732707728091,12.97600874,235.57,235.45,0.84696922]
[1732707728092,0.12549,235.58,235.51,12.97600874]
[1732707728299,12.97600874,235.59,235.51,12.97600874]
[1732707729007,12.97600874,235.59,235.52,23.776884]
[1732707730705,12.97600874,235.57,235.49,12.97600874]
[1732707732485,12.97600874,235.55,235.46,23.776884]
[1732707732681,12.97600874,235.55,235.47,12.97600874]
[1732707732991,12.97600874,235.59,235.49,12.97600874]
[1732707733391,0.12549,235.58,235.49,12.97600874]
[1732707733902,13.10149874,235.58,235.49,12.97600874]
[1732707734102,12.97600874,235.56,235.47,12.97600874]
[1732707734298,12.97600874,235.56,235.48,23.776884]
[1732707734993,12.97600874,235.54,235.45,12.97600874]
[1732707735304,12.97600874,235.51,235.43,12.97600874]
[1732707735491,12.97600874,235.53,235.45,12.97600874]
[1732707735800,0.12549,235.52,235.45,12.97600874]
[1732707736997,12.97600874,235.57,235.49,12.97600874]
[1732707737380,0.12549,235.56,235.47,12.97600874]
[1732707737581,12.97600874,235.55,235.47,12.97600874]
[1732707738413,12.97600874,235.55,235.46,23.776884]
[1732707738792,12.97600874,235.55,235.47,12.97600874]
[1732707738984,5.27470515,235.64,235.47,12.97600874]
[1732707738985,12.97600874,235.57,235.47,12.97600874]
[1732707739686,12.97600874,235.55,235.47,12.97600874]
[1732707740298,8.31718949,235.55,235.47,8.31718949]
[1732707740495,8.31718949,235.53,235.37,20.0]
[1732707740685,8.31718949,235.53,235.44,8.31718949]
[1732707740888,8.31718949,235.53,235.45,8.31718949]
[1732707742386,8.31718949,235.53,235.43,8.31718949]
[1732707742595,8.31718949,235.51,235.43,8.31718949]
[1732707742806,8.31718949,235.53,235.45,8.31718949]
[1732707743192,0.12549,235.52,235.45,8.31718949]
[1732707743391,8.31718949,235.53,235.45,8.31718949]
[1732707743595,8.31718949,235.55,235.47,8.31718949]
[1732707743989,33.26875796,235.68,235.51,8.31718949]
[1732707744198,8.31718949,235.59,235.51,8.31718949]
[1732707744411,8.31718949,235.55,235.41,0.84693618]
[1732707744705,8.31718949,235.49,235.37,0.84712486]
[1732707745001,8.31718949,235.49,235.41,8.31718949]
[1732707745191,1.84939037,235.68,235.43,8.31718949]
[1732707745192,8.31718949,235.52,235.43,8.31718949]
[1732707745601,8.31718949,235.52,235.37,12.76]
[1732707745897,8.31718949,235.46,235.39,8.31718949]
[1732707746210,8.31718949,235.44,235.37,8.31718949]
[1732707749208,8.31718949,235.4,235.32,8.31718949]
[1732707749411,8.31718949,235.38,235.27,0.84741338]
[1732707749617,8.31718949,235.36,235.24,0.84759588]
[1732707749815,8.31718949,235.36,235.28,8.31718949]
[1732707750110,8.31718949,235.34,235.26,8.31718949]
[1732707750302,20.0,235.41,235.28,8.31718949]
[1732707750505,8.31718949,235.37,235.28,8.31718949]
[1732707750687,0.12549,235.34,235.2,34.11642897]
[1732707751012,0.12549,235.34,235.26,8.31718949]
[1732707752410,0.12549,235.34,235.21,23.776884]
[1732707752609,0.12549,235.34,235.27,8.31718949]
[1732707752806,8.31718949,235.32,235.23,23.776884]
[1732707753113,8.31718949,235.32,235.24,8.31718949]
[1732707753495,23.776884,235.44,235.26,8.31718949]
[1732707753690,8.31718949,235.34,235.26,8.31718949]
[1732707754519,20.0,235.41,235.26,8.31718949]
[1732707754698,8.31718949,235.34,235.26,8.31718949]
[1732707756191,23.776884,235.44,235.3,8.31718949]
[1732707756392,6.62834335,235.61,235.37,8.31718949]
[1732707756700,8.31718949,235.44,235.36,8.31718949]
[1732707757214,8.31718949,235.42,235.32,23.776884]
[1732707757398,8.31718949,235.42,235.34,23.776884]
[1732707758202,8.31718949,235.42,235.35,8.31718949]
[1732707758398,13.00953379,235.43,235.35,13.00953379]
[1732707758627,13.00953379,235.41,235.34,23.776884]
[1732707759115,23.776884,235.56,235.37,13.00953379]
[1732707759294,13.00953379,235.46,235.37,13.00953379]
[1732707760824,20.0,235.45,235.39,13.00953379]
[1732707761402,20.0,235.45,235.38,23.776884]
[1732707761599,20.0,235.45,235.37,13.00953379]
[1732707761911,13.00953379,235.48,235.39,13.00953379]
[1732707762103,0.12549,235.47,235.39,13.00953379]
[1732707763421,13.00953379,235.46,235.38,23.776884]
[1732707763920,13.00953379,235.5,235.43,13.00953379]
[1732707764099,13.00953379,235.52,235.43,13.00953379]
[1732707765224,0.12549,235.51,235.43,13.00953379]
[1732707765523,1.84709309,235.6,235.45,13.00953379]
[1732707765708,13.00953379,235.56,235.47,13.00953379]
[1732707765914,13.00953379,235.56,235.49,13.00953379]
[1732707766317,13.00953379,235.56,235.47,13.00953379]
[1732707766820,5.39242737,235.66,235.48,23.776884]
[1732707767030,13.00953379,235.56,235.48,23.776884]
[1732707767322,13.00953379,235.58,235.5,23.776884]
[1732707767531,13.00953379,235.6,235.51,13.00953379]
[1732707767827,13.00953379,235.58,235.51,13.00953379]
[1732707768412,13.00953379,235.58,235.5,23.776884]
[1732707769429,13.00953379,235.56,235.47,13.00953379]
[1732707769638,13.00953379,235.56,235.48,23.776884]
[1732707772102,13.00953379,235.56,235.49,13.00953379]
[1732707773098,13.00953379,235.58,235.49,13.00953379]
[1732707773304,13.00953379,235.58,235.5,23.776884]
[1732707774927,13.00953379,235.54,235.47,13.00953379]
[1732707775305,13.00953379,235.56,235.47,13.00953379]
[1732707776308,13.00953379,235.56,235.48,23.776884]
[1732707776504,13.00953379,235.56,235.49,13.00953379]
[1732707777521,13.00953379,235.56,235.37,12.76]
[1732707777522,0.12549,235.49,235.41,4.21721924]
[1732707777728,13.00953379,235.47,235.4,4.21721924]
[1732707778402,13.00953379,235.47,235.39,4.21721924]
[1732707778823,13.00953379,235.47,235.4,23.776884]
[1732707781106,13.00953379,235.47,235.39,23.776884]
[1732707782407,13.00953379,235.47,235.37,23.776884]
[1732707782608,13.00953379,235.47,235.4,23.776884]
[1732707784506,13.00953379,235.45,235.37,13.00953379]
[1732707785811,13.00953379,235.45,235.38,23.776884]
[1732707786930,13.00953379,235.45,235.35,13.00953379]
[1732707787137,13.00953379,235.43,235.35,13.00953379]
[1732707787508,13.00953379,235.45,235.37,13.00953379]
[1732707788329,20.0,235.53,235.33,0.84747603]
[1732707788330,8.32476993,235.44,235.38,23.776884]
[1732707788627,8.32476993,235.44,235.37,23.776884]
[1732707790431,0.12549,235.41,235.31,4.22131412]
[1732707790628,8.32476993,235.46,235.36,8.32476993]
[1732707790830,8.32476993,235.46,235.38,8.32476993]
[1732707791032,8.32476993,235.49,235.4,8.32476993]
[1732707791529,0.12549,235.48,235.36,4.22131412]
[1732707791708,0.12549,235.48,235.32,33.29907972]
[1732707791709,0.12549,235.48,235.41,8.32476993]
[1732707792715,8.32476993,235.47,235.38,23.776884]
[1732707792925,8.32476993,235.47,235.38,8.32476993]
[1732707793313,8.32476993,235.47,235.39,23.776884]
[1732707794116,8.32476993,235.45,235.39,23.776884]
[1732707794321,8.32476993,235.43,235.34,8.32476993]
[1732707795313,8.32476993,235.39,235.31,4.22131412]
[1732707795513,8.32476993,235.38,235.29,8.32476993]
[1732707796535,13.13916038,235.39,235.31,23.776884]
[1732707797316,20.0,235.4,234.78,132.90115001]
[1732707797317,0.12549,235.32,235.28,4.22608847]
[1732707797512,13.01367038,235.29,235.2,4.22608847]
[1732707797726,0.12549,235.28,235.19,4.54827847]
[1732707797916,0.12549,235.28,235.19,0.32219]
[1732707798717,13.01367038,235.29,235.19,0.32219]
[1732707798919,0.12549,235.28,235.19,24.099074]
[1732707800934,13.01367038,235.22,235.19,0.32219]
[1732707801426,13.01367038,235.24,235.19,0.32219]
[1732707801931,4.5227826,235.38,235.2,13.01367038]
[1732707802139,13.01367038,235.33,235.24,13.01367038]
[1732707802322,13.01367038,235.33,235.25,24.62470944]
[1732707803648,13.01367038,235.33,235.26,13.01367038]
[1732707803833,13.01367038,235.35,235.27,23.776884]
[1732707804919,13.01367038,235.31,235.22,13.01367038]
[1732707805228,13.01367038,235.31,235.23,23.776884]
[1732707806130,13.01367038,235.35,235.26,13.01367038]
[1732707806436,13.01367038,235.35,235.27,23.776884]
[1732707807342,20.70555693,235.44,235.21,0.84773231]
[1732707807343,0.12549,235.28,235.21,5.06214259]
[1732707807641,20.0,235.2,235.09,13.01367038]
[1732707807841,33.01367038,235.2,235.09,13.01367038]
[1732707808043,33.13916038,235.2,235.11,13.01367038]
[1732707809049,33.01367038,235.2,235.11,13.01367038]
[1732707809621,13.01367038,235.2,235.11,13.01367038]
[1732707814021,13.01367038,235.24,235.15,13.01367038]
[1732707814240,13.01367038,235.26,235.18,23.776884]
[1732707814446,0.12549,235.25,235.18,23.776884]
[1732707815141,13.01367038,235.26,235.18,23.776884]
[1732707816043,13.01367038,235.24,235.18,23.776884]
[1732707816750,0.12549,235.31,235.18,23.776884]
[1732707816751,13.01367038,235.22,235.18,23.776884]
[1732707817245,13.01367038,235.24,235.18,23.776884]
[1732707818339,13.01367038,235.24,235.17,23.776884]
[1732707818544,20.0,235.29,235.17,36.79055438]
[1732707818841,13.01367038,235.28,235.2,23.776884]
[1732707822246,23.776884,235.43,235.2,23.776884]
[1732707822547,13.01367038,235.22,235.19,0.32219]
[1732707822732,13.01367038,235.2,235.19,0.32219]
[1732707822941,13.13916038,235.2,235.19,0.32219]
[1732707830049,26.15283076,235.2,235.19,0.32219]
[1732707832261,13.13916038,235.2,235.19,0.32219]
[1732707834846,26.15283076,235.2,235.19,0.32219]
[1732707842073,13.13916038,235.2,235.19,0.32219]
[1732707846772,0.12549,235.2,235.19,0.32219]
[1732707847062,13.13916038,235.2,235.19,0.32219]
[1732707848756,13.01367038,235.21,235.19,0.32219]
[1732707854671,13.01367038,235.23,235.19,0.32219]
[1732707860260,8.33900952,235.24,235.19,0.32219]
[1732707863391,13.02199215,235.31,235.23,13.02199215]
[1732707864181,13.02199215,235.29,235.21,13.02199215]
[1732707864483,13.02199215,235.27,235.19,13.34418215]
[1732707864691,0.12549,235.3,235.19,0.32219]
[1732707864692,13.02199215,235.25,235.19,0.32219]
[1732707864870,13.02199215,235.21,235.19,0.32219]
[1732707865066,0.12549,235.2,235.19,0.32219]
[1732707869289,13.14748215,235.2,235.19,0.32219]
[1732707873992,42.31799501,235.2,235.19,0.32219]
[1732707874773,13.14748215,235.2,235.19,0.32219]
[1732707875074,13.02199215,235.2,235.19,0.32219]
[1732707875387,13.02199215,235.21,235.19,0.32219]
[1732707876591,13.02199215,235.2,235.19,0.32219]
[1732707877177,13.02199215,235.21,235.19,0.32219]
[1732707878682,0.12549,235.2,235.19,0.32219]
[1732707879573,20.0,235.17,234.99,1.85209504]
[1732707879789,20.0,234.97,234.96,0.5143397]
[1732707879977,33.02199215,234.97,234.96,0.5143397]
[1732707880773,5.06906402,235.07,234.96,0.5143397]
[1732707880975,23.776884,235.06,234.96,0.5143397]
[1732707881286,13.02199215,234.97,234.96,0.5143397]
[1732707882785,13.14748215,234.97,234.96,0.5143397]
[1732707883080,13.02199215,234.99,234.96,0.5143397]
[1732707883393,0.12549,234.98,234.96,0.5143397]
[1732707883978,13.02199215,235.01,234.96,0.5143397]
[1732707884381,0.12549,235.01,234.96,0.5143397]
[1732707884587,20.88810893,235.02,234.96,0.5143397]
[1732707885382,20.88810893,235.0,234.96,0.5143397]
[1732707889897,20.88810893,235.08,234.96,0.5143397]
[1732707889898,20.88810893,235.02,234.96,0.5143397]
[1732707892288,20.88810893,235.04,234.96,0.5143397]
[1732707892514,20.88810893,235.04,234.96,24.2912237]
[1732707893502,20.88810893,235.06,234.98,23.776884]
[1732707894213,20.88810893,235.09,235.0,23.776884]
[1732707894383,20.88810893,235.07,235.0,23.776884]
[1732707895310,20.88810893,235.09,235.0,23.776884]
[1732707896307,20.88810893,235.11,235.02,23.776884]
[1732707897088,20.88810893,235.07,235.02,23.776884]
[1732707898312,20.88810893,235.07,235.0,23.776884]
[1732707898606,20.88810893,235.09,235.0,23.776884]
[1732707898796,20.88810893,235.09,235.02,23.776884]
[1732707898992,20.88810893,235.11,235.03,20.88810893]
[1732707899311,20.88810893,235.11,235.04,23.776884]
[1732707900121,20.88810893,235.13,235.06,23.776884]
[1732707900289,20.88810893,235.15,235.08,23.776884]
[1732707900689,20.88810893,235.16,235.08,23.776884]
[1732707901808,20.88810893,235.12,235.03,20.88810893]
[1732707902016,20.88810893,235.12,235.04,23.776884]
[1732707902484,0.12549,235.11,235.04,23.776884]
[1732707902688,20.88810893,235.1,235.04,23.776884]
[1732707903400,20.88810893,235.1,235.02,23.776884]
[1732707904296,13.04638905,235.09,235.02,23.776884]
[1732707905306,13.04638905,235.11,235.02,23.776884]
[1732707905513,13.04638905,235.07,235.02,23.776884]
[1732707905702,13.04638905,235.05,234.97,13.04638905]
[1732707907303,13.04638905,235.05,234.98,23.776884]
[1732707908899,13.04638905,235.03,234.96,0.5143397]
[1732707909216,13.04638905,235.01,234.96,0.5143397]
[1732707911512,13.04638905,234.99,234.96,0.5143397]
[1732707911720,0.12549,234.98,234.96,0.5143397]
[1732707912101,13.17187905,234.97,234.96,0.5143397]
[1732707917821,26.2182681,234.97,234.96,0.5143397]
[1732707919017,26.2182681,234.97,234.83,0.05]
[1732707919018,26.0927781,234.97,234.83,0.05]
[1732707919303,13.04638905,234.88,234.83,0.05]
[1732707919516,13.04638905,234.9,234.83,13.09638905]
[1732707919924,13.04638905,234.94,234.85,13.04638905]
[1732707920123,13.04638905,234.96,234.87,13.04638905]
[1732707920833,13.04638905,235.0,234.94,23.776884]
[1732707921126,49.28492688,235.21,234.94,23.776884]
[1732707921127,13.04638905,235.04,234.96,23.776884]
[1732707921625,0.12549,235.01,234.94,23.776884]
[1732707921821,13.04638905,235.0,234.92,23.776884]
[1732707922326,20.893666,234.98,234.91,23.776884]
[1732707922827,0.12549,234.97,234.91,23.776884]
[1732707923132,20.893666,234.98,234.91,23.776884]
[1732707924331,20.893666,235.0,234.91,23.776884]
[1732707925423,0.12549,234.99,234.92,20.893666]
[1732707926101,20.893666,235.0,234.93,23.776884]
[1732707926532,20.893666,235.02,234.95,23.776884]
[1732707932529,20.893666,235.2,234.98,20.893666]
[1732707932735,20.893666,235.06,234.99,23.776884]
[1732707933247,20.893666,235.04,234.99,23.776884]
[1732707933417,20.893666,235.04,234.97,23.776884]
[1732707936246,20.893666,235.06,234.98,20.893666]
[1732707936439,5.18957895,235.19,235.01,23.776884]
[1732707936619,6.98195687,235.19,235.02,20.893666]
[1732707936820,20.893666,235.11,235.03,23.776884]
[1732707938040,20.893666,235.09,235.03,23.776884]
[1732707939649,0.12549,235.16,235.04,20.893666]
[1732707939853,20.893666,235.14,235.04,20.893666]
[1732707940045,20.893666,235.12,235.04,20.893666]
[1732707943928,13.043362,235.14,235.04,13.043362]
[1732707944830,13.043362,235.16,235.07,13.043362]
[1732707945039,13.043362,235.16,235.09,13.043362]
[1732707945241,13.043362,235.18,235.11,13.043362]
[1732707945749,13.043362,235.22,235.15,13.043362]
[1732707946043,13.043362,235.24,235.17,13.043362]
[1732707946635,13.043362,235.24,235.15,13.043362]
[1732707946831,0.12549,235.23,235.15,13.043362]
[1732707947230,13.043362,235.24,235.15,13.043362]
[1732707947744,0.12549,235.23,235.15,13.043362]
[1732707947951,13.043362,235.22,235.15,13.043362]
[1732707949652,0.12549,235.23,235.17,13.043362]
[1732707950248,13.043362,235.26,235.17,13.043362]
[1732707950446,0.12549,235.25,235.17,13.043362]
[1732707951336,13.043362,235.24,235.17,13.043362]
[1732707954553,0.12549,235.23,235.17,13.043362]
[1732707956560,0.12549,235.24,235.18,13.043362]
[1732707957439,8.168852,235.25,235.18,13.043362]
[1732707959062,8.168852,235.25,235.16,13.043362]
[1732707959265,13.043362,235.17,234.99,0.84822869]
[1732707959566,13.043362,235.15,235.06,13.043362]
[1732707959876,13.043362,235.13,235.04,13.043362]
[1732707960156,13.043362,235.2,235.04,13.043362]
[1732707960157,13.043362,235.11,235.04,13.043362]
[1732707960939,13.043362,235.11,235.02,13.043362]
[1732707961138,13.043362,235.07,235.0,13.043362]
[1732707961554,13.043362,235.2,235.04,13.043362]
[1732707961555,13.043362,235.11,235.04,13.043362]
[1732707962474,13.043362,235.11,235.02,13.043362]
[1732707963766,13.043362,235.09,235.02,13.043362]
[1732707964066,13.043362,235.07,235.0,13.043362]
[1732707965570,13.043362,235.09,235.0,13.043362]
[1732707965747,13.043362,235.09,235.02,13.043362]
[1732707966969,13.043362,235.07,235.0,13.043362]
[1732707967459,13.043362,235.11,235.04,13.043362]
[1732707968439,13.043362,235.13,235.04,13.043362]
[1732707968863,13.043362,235.11,235.02,13.043362]
[1732707969049,13.043362,235.09,235.0,13.043362]
[1732707969657,13.043362,235.09,235.02,13.043362]
[1732707971166,13.043362,235.13,235.04,13.043362]
[1732707971468,13.043362,235.13,235.06,13.043362]
[1732707971844,13.043362,235.13,235.04,13.043362]
[1732707972777,13.043362,235.09,235.02,13.043362]
[1732707973154,13.043362,235.09,235.0,13.043362]
[1732707973775,13.043362,235.07,234.98,13.043362]
[1732707973979,13.043362,235.05,234.98,13.043362]
[1732707974158,14.83675976,235.2,234.96,13.043362]
[1732707974159,13.043362,235.03,234.96,13.043362]
[1732707975362,13.043362,235.07,234.98,13.043362]
[1732707976069,13.043362,235.07,234.89,0.84878531]
[1732707976272,23.776884,235.19,234.97,13.043362]
[1732707976273,13.043362,235.05,234.97,13.043362]
[1732707976473,13.043362,235.03,234.95,13.043362]
[1732707976671,13.043362,235.01,234.93,13.043362]
[1732707977653,13.043362,234.99,234.91,13.043362]
[1732707977978,13.043362,235.01,234.93,13.043362]
[1732707979581,13.043362,234.95,234.85,23.776884]
[1732707979755,13.043362,234.93,234.84,13.043362]
[1732707979955,13.043362,234.89,234.83,0.05]
[1732707980559,20.0,234.86,234.83,0.05]
[1732707980762,13.043362,234.87,234.83,0.05]
[1732707981409,13.043362,234.96,234.83,0.05]
[1732707981410,13.043362,234.85,234.83,0.05]
[1732707984687,12.69751943,234.85,234.83,0.05]
[1732707986684,20.0,234.81,234.72,0.5143397]
[1732707986987,13.043362,234.77,234.72,0.5143397]
[1732707987479,13.043362,234.76,234.72,0.5143397]
[1732707988578,13.043362,234.74,234.72,0.5143397]
[1732707994690,41.7212853,234.84,234.72,0.5143397]
[1732707994691,13.043362,234.76,234.72,0.5143397]
[1732707994893,13.2566867,235.11,234.72,0.5143397]
[1732707994894,13.043362,234.78,234.72,0.5143397]
[1732707995071,13.043362,234.8,234.72,0.5143397]
[1732707995872,13.043362,234.78,234.72,0.5143397]
[1732707996594,13.043362,234.76,234.72,0.5143397]
[1732707996972,13.043362,234.74,234.72,0.5143397]
[1732708000672,23.776884,234.73,234.72,0.5143397]
[1732708001397,23.776884,234.73,234.54,13.043362]
[1732708001398,20.0,234.7,234.54,13.043362]
[1732708001580,13.043362,234.63,234.56,13.043362]
[1732708001791,13.043362,234.65,234.56,13.043362]
[1732708002583,13.043362,234.69,234.61,13.043362]
[1732708003190,13.043362,234.67,234.59,13.043362]
[1732708003494,13.043362,234.69,234.61,13.043362]
[1732708004395,13.043362,234.71,234.61,13.043362]
[1732708005076,13.043362,234.73,234.65,13.043362]
[1732708005280,13.043362,234.75,234.67,13.043362]
[1732708005478,212.93438246,235.05,234.71,13.043362]
[1732708005479,13.043362,234.79,234.71,13.043362]
[1732708005667,13.043362,234.81,234.73,13.043362]
[1732708006067,13.043362,234.83,234.73,13.043362]
[1732708006287,13.043362,234.83,234.75,13.043362]
[1732708007785,13.043362,234.83,234.73,13.043362]
[1732708010591,13.043362,234.79,234.7,13.043362]
[1732708011594,13.043362,234.83,234.74,13.043362]
[1732708011802,13.043362,234.85,234.76,13.043362]
[1732708013903,13.043362,234.83,234.74,13.043362]
[1732708015093,13.043362,234.81,234.72,13.043362]
[1732708015298,13.043362,234.83,234.74,13.043362]
[1732708016179,20.0,234.8,234.65,0.84959235]
[1732708016494,20.0,234.8,234.6,12.78]
[1732708016495,13.043362,234.77,234.68,13.043362]
[1732708016905,13.043362,234.84,234.7,13.043362]
[1732708016906,13.043362,234.79,234.7,13.043362]
[1732708017401,13.043362,234.84,234.66,13.043362]
[1732708017402,13.043362,234.75,234.66,13.043362]
[1732708018293,13.043362,234.75,234.68,13.043362]
[1732708018486,13.043362,234.77,234.68,13.043362]
[1732708018682,13.043362,234.79,234.7,13.043362]
[1732708018886,13.043362,234.82,234.72,13.043362]
[1732708019583,13.043362,234.77,234.69,13.043362]
[1732708020086,13.043362,234.79,234.69,13.043362]
[1732708020483,13.043362,234.73,234.52,0.84984482]
[1732708020691,13.043362,234.71,234.62,13.043362]
[1732708020895,13.043362,234.69,234.6,13.043362]
[1732708021210,13.043362,234.67,234.58,13.043362]
[1732708021505,13.043362,234.65,234.56,13.043362]
[1732708023280,20.0,234.56,234.48,0.5143397]
[1732708023587,13.043362,234.57,234.5,13.043362]
[1732708023787,20.0,234.62,234.5,13.043362]
[1732708023788,13.043362,234.59,234.5,13.043362]
[1732708025615,13.043362,234.61,234.52,13.043362]
[1732708025987,13.043362,234.59,234.5,13.043362]
[1732708028818,13.043362,234.57,234.48,13.5577017]
[1732708029199,13.043362,234.55,234.48,0.5143397]
[1732708031090,13.043362,234.57,234.48,13.5577017]
[1732708031392,13.043362,234.55,234.48,0.5143397]
[1732708036417,13.043362,234.53,234.48,0.5143397]
[1732708036602,13.043362,234.6,234.48,0.5143397]
[1732708036603,13.043362,234.51,234.48,0.5143397]
[1732708038407,13.043362,234.6,234.48,0.5143397]
[1732708038408,13.043362,234.53,234.48,0.5143397]
[1732708038792,13.043362,234.6,234.48,0.5143397]
[1732708038793,13.043362,234.51,234.48,0.5143397]
[1732708039215,13.043362,234.49,234.48,0.5143397]
[1732708041513,13.043362,234.51,234.48,0.5143397]
[1732708046625,13.043362,234.49,234.48,0.5143397]
[1732708053219,36.820246,234.49,234.26,0.85111135]
[1732708053419,13.043362,234.44,234.36,13.043362]
[1732708054224,13.043362,234.44,234.27,0.85113193]
[1732708054519,13.043362,234.44,234.36,13.043362]
[1732708056022,13.043362,234.44,234.28,23.776884]
[1732708056226,13.043362,234.44,234.34,13.043362]
[1732708059127,13.043362,234.44,234.36,13.043362]
[1732708059326,1.84681593,234.55,234.4,13.043362]
[1732708059529,13.043362,234.51,234.42,13.043362]
[1732708060319,18.72772704,234.6,234.42,13.043362]
[1732708060320,13.043362,234.49,234.42,13.043362]
[1732708061306,13.043362,234.49,234.4,13.043362]
[1732708062129,13.043362,234.45,234.36,13.043362]
[1732708066124,13.043362,234.45,234.29,20.0]
[1732708066334,13.043362,234.45,234.37,13.043362]
[1732708067838,13.043362,234.45,234.35,13.043362]
[1732708068735,13.043362,234.45,234.37,13.043362]
[1732708069034,13.043362,234.49,234.41,13.043362]
[1732708072136,13.043362,234.51,234.43,13.043362]
[1732708074321,13.043362,234.51,234.3,12.78]
[1732708074322,7.15918933,234.6,234.31,0.85080587]
[1732708074518,13.043362,234.55,234.46,13.043362]
[1732708074722,13.043362,234.53,234.44,13.043362]
[1732708074950,13.043362,234.6,234.42,13.043362]
[1732708074951,13.043362,234.51,234.42,13.043362]
[1732708075243,13.043362,234.49,234.42,13.043362]
[1732708075433,13.043362,234.51,234.42,13.043362]
[1732708077644,13.043362,234.51,234.44,13.043362]
[1732708078327,13.043362,234.51,234.42,13.043362]
[1732708078545,13.043362,234.49,234.4,13.043362]
[1732708079125,13.043362,234.45,234.29,0.85103158]
[1732708079342,20.0,234.46,234.32,13.043362]
[1732708079343,13.043362,234.41,234.32,13.043362]
[1732708079734,13.043362,234.43,234.34,13.043362]
[1732708080550,13.043362,234.43,234.36,13.043362]
[1732708081228,13.043362,234.45,234.36,13.043362]
[1732708081429,13.043362,234.47,234.38,13.043362]
[1732708082751,13.043362,234.45,234.38,13.043362]
[1732708084936,13.043362,234.47,234.38,13.043362]
[1732708086850,13.043362,234.47,234.37,13.043362]
[1732708087147,13.043362,234.45,234.37,13.043362]
[1732708087351,13.043362,234.45,234.28,0.85102375]
[1732708087545,13.043362,234.45,234.36,13.043362]
[1732708087734,13.043362,234.47,234.38,13.043362]
[1732708088456,8.3949609,234.46,234.38,8.3949609]
[1732708088753,8.3949609,234.51,234.42,8.3949609]
[1732708090348,13.10763882,234.55,234.47,13.10763882]
[1732708090745,19.88503005,234.65,234.5,13.10763882]
[1732708090938,13.10763882,234.6,234.52,13.10763882]
[1732708091648,13.10763882,234.58,234.5,13.10763882]
[1732708093436,13.10763882,234.58,234.36,27.65553255]
[1732708093437,13.10763882,234.56,234.46,13.10763882]
[1732708093656,13.10763882,234.54,234.46,13.10763882]
[1732708095054,13.10763882,234.56,234.48,13.10763882]
[1732708095557,13.10763882,234.6,234.52,13.10763882]
[1732708096760,13.10763882,234.58,234.5,13.10763882]
[1732708097357,13.10763882,234.62,234.54,13.10763882]
[1732708098238,13.10763882,234.65,234.57,13.10763882]
[1732708099259,13.2566867,234.74,234.59,13.10763882]
[1732708099260,13.10763882,234.67,234.59,13.10763882]
[1732708101441,13.2566867,234.8,234.63,13.10763882]
[1732708101442,13.10763882,234.71,234.63,13.10763882]
[1732708102763,13.10763882,234.71,234.64,13.10763882]
[1732708102960,13.10763882,234.72,234.65,13.10763882]
[1732708103149,13.10763882,234.73,234.66,13.10763882]
[1732708103548,13.10763882,234.73,234.65,13.10763882]
[1732708103760,13.10763882,234.72,234.64,13.10763882]
[1732708104156,13.10763882,234.7,234.62,13.10763882]
[1732708104481,20.0,234.8,234.62,13.10763882]
[1732708104761,13.10763882,234.71,234.63,13.10763882]
[1732708107154,13.10763882,234.69,234.63,13.10763882]
[1732708109573,13.10763882,234.69,234.62,13.10763882]
[1732708110866,13.10763882,234.7,234.62,13.10763882]
[1732708111554,13.10763882,234.67,234.59,13.10763882]
[1732708111753,13.10763882,234.63,234.55,13.10763882]
[1732708111969,13.10763882,234.59,234.51,13.10763882]
[1732708112150,13.10763882,234.57,234.49,13.10763882]
[1732708112480,8.38791995,234.56,234.48,8.38791995]
[1732708112788,8.38791995,234.58,234.5,8.38791995]
[1732708112987,20.0,234.69,234.57,8.38791995]
[1732708113185,8.38791995,234.66,234.57,8.38791995]
[1732708113482,8.38791995,234.66,234.59,8.38791995]
[1732708113666,1.80387491,234.73,234.59,8.38791995]
[1732708113667,6.62834335,234.83,234.59,8.38791995]
[1732708113867,8.38791995,234.67,234.51,20.85060744]
[1732708114077,8.38791995,234.67,234.58,8.38791995]
[1732708114281,8.38791995,234.65,234.58,8.38791995]
[1732708114477,8.38791995,234.65,234.56,8.38791995]
[1732708115476,33.5516798,234.72,234.51,20.85060744]
[1732708115477,23.776884,234.74,234.58,8.38791995]
[1732708115667,8.38791995,234.66,234.58,8.38791995]